bitfinex/quotes_BTCUSD_20250428
["timestamp","ask_amount","ask_price","bid_price","bid_amount"]
[1745819040107,0.00304584,94250.0,94249.0,0.65909398]
[1745819040335,0.00204584,94250.0,94249.0,0.67363483]
[1745819040815,0.00304584,94250.0,94249.0,0.67363483]
[1745819041044,4.584e-05,94250.0,94249.0,0.67363483]
[1745819041257,4.584e-05,94250.0,94249.0,0.67563483]
[1745819041464,0.00204584,94250.0,94249.0,0.67563483]
[1745819041871,4.584e-05,94250.0,94249.0,0.67563483]
[1745819042279,4.584e-05,94250.0,94249.0,0.67763483]
[1745819054675,4.584e-05,94250.0,94249.0,0.55620384]
[1745819056198,4.584e-05,94250.0,94249.0,0.344]
[1745819056394,4.584e-05,94250.0,94249.0,0.342]
[1745819056576,4.584e-05,94250.0,94249.0,0.341]
[1745819056775,0.04984584,94250.0,94249.0,0.341]
[1745819056992,0.04984584,94250.0,94249.0,0.343]
[1745819057339,0.04984584,94250.0,94249.0,0.34]
[1745819057538,0.05184584,94250.0,94249.0,0.34]
[1745819057746,0.05084584,94250.0,94249.0,0.34]
[1745819057967,0.04984584,94250.0,94249.0,0.34]
[1745819058190,4.584e-05,94250.0,94249.0,0.34]
[1745819058871,4.584e-05,94250.0,94249.0,0.46143099]
[1745819059667,4.584e-05,94250.0,94249.0,0.46243099]
[1745819059888,4.584e-05,94250.0,94249.0,0.46343099]
[1745819060108,4.584e-05,94250.0,94249.0,0.46143099]
[1745819060310,4.584e-05,94250.0,94249.0,0.55335099]
[1745819060568,4.584e-05,94250.0,94249.0,0.56135099]
[1745819060777,4.584e-05,94250.0,94249.0,0.55735099]
[1745819060977,4.584e-05,94250.0,94249.0,0.55335099]
[1745819061177,4.584e-05,94250.0,94249.0,0.55935099]
[1745819070040,4.584e-05,94250.0,94249.0,0.60855099]
[1745819070223,4.584e-05,94250.0,94249.0,1.01915099]
[1745819070749,4.584e-05,94250.0,94249.0,1.02015099]
[1745819071876,4.584e-05,94250.0,94249.0,1.72015099]
[1745819075745,4.584e-05,94250.0,94249.0,1.02015099]
[1745819079360,4.584e-05,94250.0,94249.0,1.72015099]
[1745819083977,4.584e-05,94250.0,94249.0,1.62823099]
[1745819084213,4.584e-05,94250.0,94249.0,1.72011099]
[1745819087897,0.0462,94271.0,94270.0,0.21215657]
[1745819088093,0.04624583,94271.0,94270.0,0.21215657]
[1745819089059,0.04824583,94271.0,94270.0,0.21215657]
[1745819090188,0.05024583,94271.0,94270.0,0.21215657]
[1745819090792,0.04824583,94271.0,94270.0,0.21215657]
[1745819090992,0.04624583,94271.0,94270.0,0.21215657]
[1745819091215,0.04724583,94271.0,94270.0,0.21215657]
[1745819092794,0.04724583,94271.0,94270.0,0.22790693]
[1745819093222,0.04724583,94271.0,94270.0,0.23584063]
[1745819104884,0.00104583,94271.0,94270.0,0.23584063]
[1745819105434,4.583e-05,94271.0,94270.0,0.23584063]
[1745819105929,4.583e-05,94271.0,94270.0,0.23784063]
[1745819106626,4.583e-05,94271.0,94270.0,0.23984063]
[1745819110962,0.04154583,94282.0,94280.0,0.21213215]
[1745819111166,0.04159165,94282.0,94280.0,0.21213215]
[1745819112092,0.04259165,94282.0,94280.0,0.21213215]
[1745819112446,0.04359165,94282.0,94280.0,0.21213215]
[1745819119084,0.04359165,94282.0,94278.0,0.21213783]
[1745819119265,0.00265175,94281.0,94278.0,0.21213783]
[1745819120537,0.00365175,94281.0,94278.0,0.21213783]
[1745819120939,0.00365175,94281.0,94280.0,0.21213406]
[1745819121693,0.00365175,94281.0,94278.0,0.21213783]
[1745819121915,0.00465175,94281.0,94280.0,0.21213406]
[1745819122144,0.00365175,94281.0,94270.0,0.02368406]
[1745819122334,0.0481,94279.0,94270.0,0.0079337]
[1745819122537,0.0455,94277.0,94250.0,0.1875347]
[1745819122718,0.0455,94274.0,94268.0,0.00794529]
[1745819122859,0.0455,94272.0,94260.0,0.17553793]
[1745819123063,0.0026523,94271.0,94260.0,0.17553793]
[1745819123285,0.01988483,94270.0,94260.0,0.17553793]
[1745819123485,0.0026523,94269.0,94260.0,0.17553793]
[1745819124022,0.01988483,94268.0,94262.0,0.22278329]
[1745819124300,0.0225371,94267.0,94263.0,0.21217232]
[1745819124482,0.0225371,94267.0,94262.0,0.21217457]
[1745819124853,0.00265227,94267.0,94262.0,0.22012163]
[1745819125056,0.003,94269.0,94262.0,0.22012163]
[1745819125221,0.00265227,94268.0,94262.0,0.22012163]
[1745819125628,0.002,94267.0,94262.0,0.22012163]
[1745819126568,0.00265227,94266.0,94262.0,0.22012163]
[1745819126754,0.00265227,94266.0,94262.0,0.00794706]
[1745819127067,0.00265227,94266.0,94260.0,0.38771547]
[1745819127263,0.001,94267.0,94260.0,0.38771547]
[1745819127425,0.00265229,94266.0,94260.0,0.38771547]
[1745819127930,0.0491,94265.0,94259.0,0.00552901]
[1745819128133,0.00265229,94266.0,94259.0,0.00552901]
[1745819128134,0.0491,94262.0,94259.0,0.00552901]
[1745819128334,0.0945,94260.0,94259.0,0.00552901]
[1745819128707,0.0945,94260.0,94258.0,0.5]
[1745819128708,0.0966,94259.0,94258.0,0.35872901]
[1745819128913,0.0966,94259.0,94250.0,0.0013867]
[1745819128914,0.17202008,94259.0,94250.0,0.0013867]
[1745819129094,0.61674322,94258.0,94250.0,0.0013867]
[1745819129285,0.0966,94256.0,94250.0,0.0013867]
[1745819129466,0.0966,94254.0,94250.0,0.0013867]
[1745819129673,0.0966,94252.0,94250.0,0.0013867]
[1745819129936,0.10954334,94251.0,94250.0,0.0013867]
[1745819130131,0.12940221,94251.0,94250.0,0.0023867]
[1745819130479,0.12940221,94251.0,94250.0,0.0013867]
[1745819130866,0.12940221,94251.0,94250.0,0.0023867]
[1745819131034,0.12940221,94251.0,94250.0,0.00284569]
[1745819131248,0.13440221,94251.0,94250.0,0.00384569]
[1745819131635,0.11454334,94251.0,94250.0,0.00384569]
[1745819132002,0.11454334,94251.0,94250.0,0.00284569]
[1745819132279,0.58930356,94251.0,94245.0,0.0004239]
[1745819132451,0.094,94248.0,94245.0,0.00046973]
[1745819132654,0.34,94246.0,94230.0,0.0004244]
[1745819132883,0.10779014,94244.0,94230.0,0.0004244]
[1745819133061,0.55238041,94244.0,94230.0,0.0004244]
[1745819133478,0.34,94243.0,94230.0,0.0004244]
[1745819133657,0.44689014,94241.0,94230.0,0.00047024]
[1745819133860,0.09465362,94240.0,94230.0,0.00047024]
[1745819134020,0.10689014,94239.0,94230.0,0.00047024]
[1745819134237,0.10832702,94238.0,94230.0,0.00047024]
[1745819134437,0.10689014,94237.0,94230.0,0.00047024]
[1745819134790,0.00265361,94236.0,94230.0,0.00147024]
[1745819134954,0.10689014,94235.0,94230.0,0.00147024]
[1745819135157,0.00265361,94234.0,94230.0,0.00047024]
[1745819135409,0.10689014,94233.0,94230.0,0.00047024]
[1745819135605,0.00265361,94232.0,94230.0,0.00147024]
[1745819135804,0.10689014,94231.0,94230.0,0.00147024]
[1745819136607,0.10689014,94231.0,94230.0,0.00247024]
[1745819136899,0.54663514,94231.0,94230.0,0.00047024]
[1745819137113,0.54863514,94231.0,94230.0,0.00147024]
[1745819137656,0.54863514,94231.0,94230.0,0.00247024]
[1745819138225,0.54863514,94231.0,94230.0,0.00147024]
[1745819138370,0.55463514,94231.0,94230.0,0.00247024]
[1745819150986,0.57436319,94231.0,94230.0,0.00247024]
[1745819151702,0.54521819,94231.0,94230.0,0.00247024]
[1745819153900,0.43832805,94231.0,94230.0,0.00247024]
[1745819154558,0.008,94231.0,94230.0,0.00247024]
[1745819154761,0.0106534,94231.0,94230.0,0.00247024]
[1745819154936,0.03038145,94231.0,94230.0,0.00247024]
[1745819155908,0.03038145,94231.0,94222.0,4.40196919]
[1745819156106,0.03083959,94231.0,94222.0,4.40196919]
[1745819156648,0.01972805,94230.0,94222.0,4.40196919]
[1745819156814,0.00265341,94229.0,94222.0,4.40196919]
[1745819157259,0.01972805,94228.0,94222.0,4.40296919]
[1745819157435,0.00265341,94227.0,94222.0,4.40196919]
[1745819157863,0.01972805,94226.0,94222.0,4.40196919]
[1745819158013,0.02238146,94225.0,94222.0,4.40196919]
[1745819158776,0.01972805,94224.0,94222.0,4.40396919]
[1745819158969,0.01972805,94224.0,94222.0,4.40296919]
[1745819159270,0.01972805,94223.0,94222.0,4.40296919]
[1745819159432,0.01972805,94223.0,94222.0,4.40396919]
[1745819159648,0.01972805,94223.0,94222.0,4.40296919]
[1745819159856,0.01972805,94223.0,94222.0,4.40850417]
[1745819160446,0.02172805,94223.0,94222.0,4.40950417]
[1745819161681,0.02172805,94223.0,94222.0,4.40850417]
[1745819161878,0.02572805,94223.0,94222.0,4.40950417]
[1745819168370,0.02572805,94223.0,94222.0,4.62176882]
[1745819168496,0.02572805,94223.0,94222.0,4.40950417]
[1745819168698,0.006,94223.0,94222.0,4.40950417]
[1745819169141,0.002,94223.0,94222.0,4.40850417]
[1745819169389,0.00045814,94231.0,94222.0,4.40750417]
[1745819169561,0.001,94223.0,94222.0,4.41250417]
[1745819170175,0.001,94223.0,94222.0,4.41050417]
[1745819170389,0.001,94223.0,94222.0,4.45670417]
[1745819172569,0.001,94223.0,94222.0,4.45770417]
[1745819177943,0.001,94223.0,94222.0,4.41150417]
[1745819179868,0.02087248,94223.0,94222.0,4.41150417]
[1745819180753,0.001,94223.0,94222.0,4.41150417]
[1745819181843,0.001,94223.0,94222.0,4.46000417]
[1745819182046,0.001,94223.0,94222.0,4.50630417]
[1745819198361,0.02089403,94223.0,94222.0,4.50630417]
[1745819200128,0.02089403,94223.0,94222.0,4.25743863]
[1745819205377,0.02089403,94223.0,94222.0,4.46970328]
[1745819205514,0.001,94223.0,94222.0,4.46970328]
[1745819211063,0.001,94223.0,94222.0,4.80970328]
[1745819211264,0.02090931,94223.0,94222.0,4.80970328]
[1745819212606,0.001,94223.0,94222.0,4.80970328]
[1745819216127,0.01419012,94256.0,94222.0,4.80970328]
[1745819216128,0.01419012,94256.0,94229.0,0.21224819]
[1745819216310,0.12945091,94250.0,94230.0,0.17572686]
[1745819216874,0.01990775,94249.0,94230.0,0.17572686]
[1745819217012,0.00265302,94248.0,94230.0,0.17572686]
[1745819217216,0.01990775,94247.0,94230.0,0.17572686]
[1745819217415,0.00265302,94246.0,94230.0,0.17572686]
[1745819217710,0.01990775,94245.0,94230.0,0.17672686]
[1745819217915,0.00265302,94244.0,94230.0,0.17672686]
[1745819218178,0.00265302,94244.0,94230.0,0.17772686]
[1745819218385,0.01990775,94243.0,94230.0,0.17772686]
[1745819218605,0.00265302,94242.0,94230.0,0.17672686]
[1745819218807,0.02256077,94242.0,94230.0,0.17672686]
[1745819219023,0.01990775,94241.0,94230.0,0.17772686]
[1745819219224,0.01990775,94241.0,94230.0,0.17672686]
[1745819219601,0.01990775,94240.0,94230.0,0.17672686]
[1745819220013,0.02256077,94239.0,94230.0,0.17672686]
[1745819220216,0.02256077,94239.0,94228.0,0.21225065]
[1745819220398,0.01990775,94238.0,94229.0,0.17572686]
[1745819220605,0.00265302,94237.0,94230.0,0.001]
[1745819220746,0.02256077,94237.0,94230.0,0.001]
[1745819220951,0.02256077,94237.0,94229.0,0.17572686]
[1745819221355,0.01990775,94236.0,94229.0,0.17572686]
[1745819221557,0.00265301,94235.0,94229.0,0.17572686]
[1745819221810,0.01990775,94234.0,94229.0,0.17572686]
[1745819222151,0.01990775,94233.0,94229.0,0.17672686]
[1745819222890,0.01990775,94232.0,94229.0,0.17672686]
[1745819223452,0.01990775,94231.0,94229.0,0.17672686]
[1745819224266,0.01990775,94230.0,94229.0,0.17672686]
[1745819225384,0.01990775,94230.0,94229.0,0.21224888]
[1745819225917,0.001,94231.0,94229.0,0.21424888]
[1745819226091,0.001,94231.0,94229.0,0.21224888]
[1745819226510,0.00265302,94250.0,94236.0,0.01061165]
[1745819226710,0.00265302,94250.0,94235.0,0.21223427]
[1745819226711,0.01425193,94250.0,94235.0,0.22284603]
[1745819226901,0.01425193,94250.0,94240.0,0.17572686]
[1745819227147,0.00265302,94250.0,94240.0,0.17572686]
[1745819227355,0.01989815,94249.0,94240.0,0.17572686]
[1745819227557,0.00265284,94248.0,94240.0,0.17572686]
[1745819227779,0.02255099,94248.0,94232.0,0.21224144]
[1745819227979,0.02255099,94248.0,94232.0,0.22285354]
[1745819227980,0.01358871,94247.0,94232.0,0.22285354]
[1745819228360,0.02254731,94246.0,94232.0,0.22285354]
[1745819228748,0.01989445,94245.0,94232.0,0.22285354]
[1745819229172,0.01989445,94244.0,94232.0,0.22285354]
[1745819229381,0.01989445,94243.0,94232.0,0.22285354]
[1745819229637,0.01989445,94243.0,94232.0,0.22385354]
[1745819229790,0.02254731,94242.0,94232.0,0.22285354]
[1745819230215,0.02254731,94242.0,94232.0,0.22385354]
[1745819230415,0.01989445,94241.0,94232.0,0.22285354]
[1745819230859,0.01989445,94241.0,94232.0,0.21424144]
[1745819231072,0.01989445,94240.0,94232.0,0.21424144]
[1745819231486,0.01989445,94239.0,94232.0,0.21424144]
[1745819232036,0.01989445,94239.0,94232.0,0.21324144]
[1745819232232,0.01989445,94239.0,94232.0,0.002]
[1745819232441,0.01989445,94238.0,94232.0,0.002]
[1745819232646,0.01989445,94238.0,94230.0,0.17572686]
[1745819232847,0.01989445,94237.0,94232.0,0.21524144]
[1745819233376,0.001,94239.0,94232.0,0.21524144]
[1745819233377,0.01989445,94236.0,94232.0,0.003]
[1745819233807,0.01989445,94235.0,94232.0,0.001]
[1745819234105,0.01989445,94234.0,94232.0,0.004]
[1745819234255,0.01989445,94234.0,94232.0,0.003]
[1745819234455,0.01989445,94234.0,94232.0,0.005]
[1745819234716,0.01989445,94233.0,94232.0,0.005]
[1745819235159,0.01989445,94233.0,94232.0,0.003]
[1745819235367,0.01989445,94233.0,94232.0,0.005]
[1745819235927,0.01989445,94233.0,94232.0,0.002]
[1745819236245,0.01989445,94233.0,94232.0,0.005]
[1745819236454,0.01989445,94233.0,94232.0,0.002]
[1745819236607,0.02089445,94233.0,94232.0,0.006]
[1745819237254,0.02089445,94233.0,94232.0,0.004]
[1745819237463,0.02189445,94233.0,94232.0,0.006]
[1745819238056,0.02189445,94233.0,94232.0,0.00659719]
[1745819238393,0.002,94233.0,94232.0,0.006]
[1745819238579,0.002,94233.0,94232.0,0.00659719]
[1745819241742,0.002,94233.0,94232.0,0.34659719]
[1745819241889,0.002,94233.0,94232.0,0.346]
[1745819262279,0.002,94233.0,94232.0,0.56373099]
[1745819263307,0.001,94233.0,94232.0,0.56173099]
[1745819263508,0.00013612,94251.0,94232.0,0.56173099]
[1745819263509,0.00013612,94251.0,94243.0,0.01061086]
[1745819263709,0.00013612,94251.0,94245.0,0.01061064]
[1745819263904,0.00013612,94251.0,94245.0,0.35061064]
[1745819264102,0.00013612,94251.0,94247.0,0.01061041]
[1745819264319,0.01988538,94250.0,94247.0,0.01061041]
[1745819264523,0.01988538,94250.0,94246.0,0.2228203]
[1745819264780,0.00013612,94251.0,94246.0,0.23061223]
[1745819265196,0.00013612,94251.0,94247.0,0.01061041]
[1745819265600,0.00013612,94251.0,94248.0,0.21220609]
[1745819267108,0.00013612,94251.0,94248.0,0.23633088]
[1745819267327,0.00013612,94251.0,94248.0,0.22572058]
[1745819267750,0.00013612,94251.0,94248.0,0.23633088]
[1745819268559,0.00013612,94251.0,94248.0,0.23833088]
[1745819270203,0.00013612,94251.0,94248.0,0.22772058]
[1745819270396,0.00013612,94251.0,94248.0,0.23833088]
[1745819278134,0.00013612,94251.0,94250.0,0.21220159]
[1745819278528,0.00013612,94251.0,94248.0,0.22772058]
[1745819278958,0.00013612,94251.0,94248.0,0.01351449]
[1745819279182,0.00013612,94251.0,94250.0,0.002]
[1745819279535,0.00013612,94251.0,94250.0,0.001]
[1745819281919,0.00013612,94251.0,94250.0,0.003]
[1745819287406,0.02001539,94251.0,94250.0,0.003]
[1745819291432,0.02001539,94251.0,94248.0,0.0236628]
[1745819291683,0.02001539,94251.0,94248.0,0.23586722]
[1745819292230,0.01987927,94250.0,94248.0,0.23586722]
[1745819292618,0.01987927,94249.0,94248.0,0.23586722]
[1745819293165,0.01987927,94249.0,94248.0,0.23786722]
[1745819293502,0.01987927,94249.0,94248.0,0.23686722]
[1745819293882,0.01987927,94249.0,94248.0,0.22625692]
[1745819294290,0.01987927,94249.0,94248.0,0.22825692]
[1745819294693,0.01987927,94249.0,94248.0,0.22725692]
[1745819294841,0.01987927,94249.0,94248.0,0.22825692]
[1745819299857,0.01987927,94249.0,94248.0,0.0160525]
[1745819310366,0.00013612,94251.0,94249.0,0.21220384]
[1745819310591,0.00013612,94251.0,94250.0,0.00059608]
[1745819313255,0.00013612,94251.0,94250.0,0.00159608]
[1745819318118,0.02003905,94251.0,94250.0,0.00159608]
[1745819318360,0.02003905,94251.0,94250.0,0.001]
[1745819320742,0.00013612,94251.0,94250.0,0.001]
[1745819323470,0.02003874,94251.0,94250.0,0.001]
[1745819325462,0.00013612,94251.0,94250.0,0.001]
[1745819330268,0.00013612,94251.0,94250.0,0.50873099]
[1745819331291,0.00113612,94251.0,94250.0,0.51273099]
[1745819332250,0.00113612,94251.0,94250.0,0.51173099]
[1745819332591,0.00213612,94251.0,94250.0,0.51673099]
[1745819332953,0.00213612,94251.0,94250.0,1.21673099]
[1745819336624,0.00213612,94251.0,94250.0,0.51673099]
[1745819339591,0.00213612,94251.0,94250.0,1.21673099]
[1745819344686,0.00213612,94251.0,94250.0,1.15589014]
[1745819344898,0.00213612,94251.0,94250.0,0.709]
[1745819345659,0.00113612,94251.0,94250.0,0.704]
[1745819346211,0.00113612,94251.0,94250.0,0.7]
[1745819346462,0.00113612,94251.0,94246.0,0.00776541]
[1745819346633,0.00213612,94251.0,94246.0,0.00836183]
[1745819346788,0.00213612,94251.0,94246.0,0.00059642]
[1745819347027,0.00213612,94251.0,94244.0,0.00059641]
[1745819347477,0.00013612,94251.0,94244.0,0.00059641]
[1745819348073,0.00113612,94251.0,94244.0,0.00059641]
[1745819348248,0.00113612,94251.0,94244.0,0.00853644]
[1745819349136,0.00013612,94251.0,94244.0,0.00853644]
[1745819349559,0.00113612,94251.0,94244.0,0.00853644]
[1745819351471,0.046,94249.0,94244.0,0.00794003]
[1745819351669,0.046,94249.0,94241.0,0.00553455]
[1745819351670,0.0473,94247.0,94241.0,0.00553455]
[1745819352078,0.01986771,94246.0,94241.0,0.00553455]
[1745819352693,0.01986771,94245.0,94241.0,0.01360757]
[1745819353464,0.01986771,94244.0,94241.0,0.01460757]
[1745819353797,0.01986771,94243.0,94241.0,0.01460757]
[1745819353994,0.01986771,94243.0,94241.0,0.01360757]
[1745819354199,0.01986771,94242.0,94241.0,0.01460757]
[1745819354603,0.003,94245.0,94241.0,0.01460757]
[1745819355223,0.01978654,94244.0,94241.0,0.01460757]
[1745819355439,0.00465273,94245.0,94241.0,0.01360757]
[1745819355590,0.002,94243.0,94241.0,0.01460757]
[1745819356271,0.00265273,94246.0,94241.0,0.01360757]
[1745819356412,0.004,94244.0,94241.0,0.01460757]
[1745819356627,0.002,94244.0,94241.0,0.01460757]
[1745819356827,0.00265273,94246.0,94241.0,0.01360757]
[1745819357088,0.002,94243.0,94241.0,0.01360757]
[1745819357392,0.004,94243.0,94241.0,0.01460757]
[1745819358166,0.002,94243.0,94241.0,0.01460757]
[1745819358553,0.002,94244.0,94241.0,0.01360757]
[1745819358757,0.00265273,94246.0,94241.0,0.01360757]
[1745819359112,0.002,94243.0,94241.0,0.01360757]
[1745819359323,0.002,94243.0,94241.0,0.01460757]
[1745819359519,0.00565273,94246.0,94241.0,0.01460757]
[1745819359749,0.002,94244.0,94241.0,0.01460757]
[1745819359931,0.002,94244.0,94241.0,0.01360757]
[1745819360360,0.003,94243.0,94241.0,0.01460757]
[1745819361641,0.002,94244.0,94241.0,0.01360757]
[1745819361816,0.002,94243.0,94241.0,0.01360757]
[1745819362002,0.002,94243.0,94241.0,0.01460757]
[1745819362414,0.002,94243.0,94242.0,0.2122196]
[1745819362619,0.0481,94257.0,94242.0,0.21281657]
[1745819363003,0.005,94243.0,94242.0,0.21281657]
[1745819363206,0.003,94243.0,94242.0,0.00059697]
[1745819363406,0.0481,94257.0,94243.0,0.01061086]
[1745819363606,0.0481,94257.0,94244.0,0.0112073]
[1745819364122,0.0481,94257.0,94244.0,0.00059655]
[1745819364362,0.0481,94257.0,94244.0,0.0112073]
[1745819364719,0.0481,94250.0,94242.0,0.00059655]
[1745819364957,0.0481,94250.0,94241.0,0.01420419]
[1745819365163,0.0481,94250.0,94242.0,0.002]
[1745819365965,0.0481,94250.0,94241.0,0.01420421]
[1745819366385,0.00265246,94249.0,94242.0,0.001]
[1745819367827,0.02249658,94249.0,94242.0,0.001]
[1745819368295,0.02249658,94249.0,94241.0,0.01360757]
[1745819368489,0.02349658,94249.0,94241.0,0.01360757]
[1745819368716,0.02349658,94249.0,94241.0,0.01460757]
[1745819369131,0.02349658,94249.0,94241.0,0.01360757]
[1745819369338,0.02449658,94249.0,94241.0,0.01460757]
[1745819369542,0.02184412,94249.0,94241.0,0.01460757]
[1745819369861,0.003,94249.0,94241.0,0.01460757]
[1745819373560,0.01987074,94248.0,94241.0,0.01460757]
[1745819374200,0.01987074,94247.0,94241.0,0.01460757]
[1745819374461,0.003,94249.0,94241.0,0.01460757]
[1745819374462,0.01987074,94246.0,94241.0,0.01360757]
[1745819374659,0.01987074,94246.0,94241.0,0.01460757]
[1745819375181,0.01987074,94245.0,94241.0,0.01360757]
[1745819375768,0.01987074,94244.0,94241.0,0.01360757]
[1745819376167,0.02252348,94243.0,94241.0,0.01360757]
[1745819376418,0.01987074,94242.0,94241.0,0.01360757]
[1745819377178,0.06837074,94242.0,94241.0,0.01360757]
[1745819377946,0.06837074,94242.0,94241.0,0.00807302]
[1745819378089,0.06837074,94242.0,94241.0,0.00907302]
[1745819378450,0.06837074,94242.0,94241.0,0.001]
[1745819378649,0.06837074,94242.0,94241.0,0.002]
[1745819378992,0.06837074,94242.0,94241.0,0.0091407]
[1745819379211,0.07037074,94242.0,94230.0,0.00553624]
[1745819379411,0.01484534,94241.0,94230.0,0.00553624]
[1745819379611,0.01987074,94240.0,94226.0,0.0914]
[1745819379898,0.00265299,94239.0,94226.0,0.0914]
[1745819380073,0.02252373,94239.0,94226.0,0.0914]
[1745819380627,0.01987074,94238.0,94226.0,0.0914]
[1745819380861,0.00265299,94237.0,94226.0,0.0914]
[1745819381068,0.02252373,94237.0,94230.0,0.001]
[1745819381568,0.02252373,94237.0,94226.0,0.0914]
[1745819381768,0.01987074,94236.0,94226.0,0.0914]
[1745819381951,0.01987074,94236.0,94226.0,0.0924]
[1745819382524,0.01987074,94236.0,94226.0,0.10017994]
[1745819382711,0.01987074,94235.0,94226.0,0.10017994]
[1745819383008,0.01987074,94234.0,94226.0,0.09917994]
[1745819383581,0.01987074,94233.0,94226.0,0.09917994]
[1745819383989,0.01987074,94232.0,94226.0,0.09917994]
[1745819384486,0.01987074,94231.0,94226.0,0.10017994]
[1745819384716,0.01987074,94231.0,94226.0,0.09917994]
[1745819385251,0.01987074,94230.0,94226.0,0.10017994]
[1745819385414,0.01987074,94230.0,94226.0,0.09917994]
[1745819385609,0.01987074,94229.0,94226.0,0.10017994]
[1745819386195,0.4072,94252.0,94229.0,0.01061244]
[1745819386423,0.02523728,94251.0,94240.0,0.17572686]
[1745819386728,0.01987691,94250.0,94240.0,0.17572686]
[1745819387127,0.01987691,94249.0,94240.0,0.17572686]
[1745819387547,0.01987691,94248.0,94240.0,0.17572686]
[1745819387972,0.01987691,94247.0,94240.0,0.17572686]
[1745819388541,0.01987691,94246.0,94240.0,0.17772686]
[1745819388737,0.01987691,94246.0,94240.0,0.002]
[1745819388937,0.01987691,94246.0,94237.0,0.01061154]
[1745819389139,0.01987691,94246.0,94240.0,0.001]
[1745819389367,0.01987691,94245.0,94240.0,0.002]
[1745819390228,0.01987691,94244.0,94240.0,0.002]
[1745819390432,0.01987691,94244.0,94240.0,0.001]
[1745819390749,0.01987691,94243.0,94240.0,0.001]
[1745819390979,0.01987691,94243.0,94237.0,0.001]
[1745819391175,0.01987691,94242.0,94237.0,0.01061154]
[1745819391422,0.01987691,94242.0,94240.0,0.0497]
[1745819391624,0.003,94244.0,94243.0,0.01061086]
[1745819391829,0.003,94244.0,94243.0,0.01120726]
[1745819392035,0.00013612,94251.0,94248.0,0.0106103]
[1745819393856,6.979e-05,94251.0,94248.0,0.0106103]
[1745819394052,0.00106979,94251.0,94248.0,0.0106103]
[1745819398584,0.00106979,94251.0,94248.0,0.22281443]
[1745819398797,0.00106979,94251.0,94248.0,0.0106103]
[1745819399686,0.00106979,94251.0,94247.0,0.01061041]
[1745819399884,6.979e-05,94251.0,94247.0,0.01061041]
[1745819400600,6.979e-05,94251.0,94248.0,0.001]
[1745819401049,6.979e-05,94251.0,94246.0,0.01120692]
[1745819401214,6.979e-05,94251.0,94247.0,0.001]
[1745819401419,6.979e-05,94251.0,94247.0,0.01161041]
[1745819401619,6.979e-05,94251.0,94247.0,0.01061041]
[1745819401817,6.979e-05,94251.0,94248.0,0.001]
[1745819402015,6.979e-05,94251.0,94248.0,0.0116103]
[1745819402242,6.979e-05,94251.0,94248.0,0.22281546]
[1745819402441,6.979e-05,94251.0,94244.0,0.01061075]
[1745819402620,6.979e-05,94251.0,94245.0,0.0005964]
[1745819403001,6.979e-05,94251.0,94245.0,0.01120704]
[1745819403205,6.979e-05,94251.0,94245.0,0.0005964]
[1745819403485,6.979e-05,94251.0,94247.0,0.001]
[1745819403887,6.979e-05,94251.0,94246.0,0.01061052]
[1745819404630,6.979e-05,94251.0,94247.0,0.001]
[1745819405103,6.979e-05,94251.0,94246.0,0.01061052]
[1745819405304,6.979e-05,94251.0,94246.0,0.01161052]
[1745819406104,6.979e-05,94251.0,94247.0,0.01061041]
[1745819406768,6.979e-05,94251.0,94246.0,0.0015964]
[1745819406939,6.979e-05,94251.0,94242.0,0.01120743]
[1745819407154,3.26e-06,94251.0,94247.0,0.001]
[1745819407912,0.00100326,94251.0,94246.0,0.0005964]
[1745819409259,3.26e-06,94251.0,94246.0,0.0005964]
[1745819409742,0.00100326,94251.0,94241.0,0.10689014]
[1745819410259,3.26e-06,94251.0,94241.0,0.10689014]
[1745819410469,0.00100326,94251.0,94241.0,0.10689014]
[1745819410802,3.26e-06,94251.0,94243.0,0.01061086]
[1745819411059,3.26e-06,94251.0,94244.0,0.01061075]
[1745819411268,0.00100326,94251.0,94244.0,0.01061075]
[1745819411727,0.01985556,94250.0,94244.0,0.01061075]
[1745819412368,3.26e-06,94251.0,94244.0,0.01061075]
[1745819412812,0.00100326,94251.0,94244.0,0.01061075]
[1745819413014,0.00100326,94251.0,94241.0,0.10689014]
[1745819413167,3.26e-06,94251.0,94241.0,0.11750123]
[1745819413371,3.26e-06,94251.0,94242.0,0.01061098]
[1745819413627,0.01986272,94250.0,94241.0,0.11750123]
[1745819413783,0.01986272,94250.0,94242.0,0.01061098]
[1745819413978,0.01986272,94249.0,94242.0,0.01061098]
[1745819414410,0.01986272,94249.0,94241.0,0.10689014]
[1745819414818,0.01986272,94248.0,94242.0,0.01061098]
[1745819414994,0.01986272,94248.0,94241.0,0.11750123]
[1745819415345,0.01986272,94247.0,94242.0,0.01061098]
[1745819415664,0.01986272,94247.0,94241.0,0.11750123]
[1745819415870,0.01986272,94246.0,94241.0,0.11750123]
[1745819416204,0.01986272,94246.0,94242.0,0.01061098]
[1745819416402,0.01986272,94245.0,94241.0,0.10689014]
[1745819416642,0.01986272,94245.0,94241.0,0.11750123]
[1745819416816,0.01986272,94244.0,94242.0,0.002]
[1745819417025,0.01986272,94244.0,94242.0,0.001]
[1745819417389,0.01986272,94243.0,94242.0,0.001]
[1745819417508,0.01986272,94243.0,94241.0,0.10789014]
[1745819417714,0.01986272,94242.0,94241.0,0.10789014]
[1745819418250,0.01986272,94242.0,94241.0,0.001]
[1745819418494,0.02954458,94242.0,94241.0,0.001]
[1745819418693,0.02954458,94242.0,94233.0,0.34]
[1745819419101,0.01986272,94241.0,94233.0,0.34]
[1745819419306,0.01986272,94241.0,94232.0,0.3506121]
[1745819419509,0.01986272,94241.0,94232.0,0.45750224]
[1745819419964,0.01986272,94240.0,94232.0,0.45750224]
[1745819420408,0.01986272,94240.0,94233.0,0.01061199]
[1745819420655,0.01986272,94239.0,94233.0,0.01061199]
[1745819420864,0.01986272,94239.0,94235.0,0.01061176]
[1745819421087,0.01986272,94238.0,94236.0,0.01061165]
[1745819421306,0.01986272,94238.0,94236.0,0.22284476]
[1745819421560,0.01986272,94238.0,94236.0,0.21223311]
[1745819421782,0.01986272,94238.0,94237.0,0.15419014]
[1745819422284,0.01986272,94238.0,94237.0,0.10689014]
[1745819422500,0.01974263,94238.0,94237.0,0.10689014]
[1745819422946,0.0196759,94238.0,94237.0,0.10689014]
[1745819423168,0.0196759,94238.0,94237.0,0.10789014]
[1745819423388,0.0196759,94238.0,94237.0,0.10889014]
[1745819425156,0.048,94254.0,94240.0,0.0106112]
[1745819425517,0.048,94254.0,94240.0,0.18633806]
[1745819425719,0.048,94254.0,94241.0,0.01061109]
[1745819425918,0.048,94254.0,94240.0,0.18633806]
[1745819426346,0.00300326,94251.0,94240.0,0.18733806]
[1745819426547,0.00300326,94251.0,94240.0,0.0116112]
[1745819426755,0.00300326,94251.0,94240.0,0.18733806]